[Event "5th Sharjah Masters 2022"]
[Site "Sharjah"]
[Date "2022.05.26"]
[Round "6.19"]
[White "Ter-Sahakyan, Samvel"]
[Black "Azarov, Sergei"]
[Result "1/2-1/2"]
[ECO "C92"]
[WhiteElo "2640"]
[BlackElo "2588"]
[Annotator "TA"]
[PlyCount "87"]
[EventDate "2022.05.21"]
[EventType "swiss"]
[EventCountry "UAE"]
[SourceTitle "playchess.com"]
[Source "ChessBase"]
[SourceQuality "1"]
[TimeControl "5400+30"]

{[%evp 19,87,27,33,24,50,22,20,0,32,28,50,50,46,39,39,42,42,38,41,34,56,31,37,31,65,60,69,69,104,70,69,69,74,74,70,70,84,79,69,69,94,54,86,77,77,77,83,76,76,68,82,85,142,136,374,372,377,348,368,347,316,207,235,0,0,0,0,0,3,4]} 1. e4 {[%emt 0:00:06]} e5 {[%emt 0:00:09]} 2. Nf3 {[%emt 0:00:38]} Nc6 {[%emt 0:00:11]} 3. Bb5 {[%emt 0:00:08][%cal Bf1b5,Bb5a4,Ba4b3,Bb3a2][%mdl 32]} a6 {[%emt 0:00:20]} 4. Ba4 {[%emt 0:00:04]} Nf6 {[%emt 0:00:09]} 5. O-O {[%emt 0:00:06]} Be7 {[%emt 0:00:22]} 6. Re1 {[%emt 0:00:54]} b5 {[%emt 0:00:15]} 7. Bb3 {[%emt 0:00:04]} d6 {[%emt 0:00:09]} 8. c3 {[%emt 0:00:05]} O-O {[%emt 0:00:18]} 9. h3 {[%emt 0:00:56]} Bb7 {[%emt 0:00:33]} 10. d4 {[%emt 0:00:15]} Re8 {[%emt 0:00:17]} 11. a3 {[%emt 0:01:34] C92: Closed Ruy Lopez: 9...Be6, Karpov and Flohr-Zaitsev Variations.} h6 {[%emt 0:05:21]} 12. Ba2 $1 {[%emt 0:03:27][%mdl 4] is now more promising than 12.Nbd2.} Bf8 {[%emt 0:04:32]} 13. d5 {[%emt 0:05:02]} (13. Nbd2 {keeps more tension.} Nb8 14. Qb3 Qd7 15. Bb1) 13... Na7 {[%emt 0:26:31] [#]} 14. b3 $146 {[%emt 0:19:53]} ({Predecessor:} 14. c4 bxc4 15. Bxc4 c6 16. Nc3 Nb5 17. dxc6 Bxc6 18. Nd5 Nxd5 19. Bxd5 Qd7 20. Be3 Bxd5 21. Qxd5 {0-1 (54) Suetin,A-Gligoric,S Budva 1967}) 14... c5 {[%emt 0:10:40]} 15. c4 {[%emt 0:01:23]} a5 {[%emt 0:00:43]} 16. a4 {[%emt 0:01:18]} b4 {[%emt 0:00:49]} 17. Nbd2 {[%emt 0:00:12][%cal Bb1d2,Bd2f1,Bf1e3][%mdl 32]} Nc8 {[%emt 0:02:22]} 18. Bb1 {[%emt 0:00:52]} Ne7 {[%emt 0:01:49]} 19. Nf1 {[%emt 0:00:46]} Ng6 {[%emt 0:04:27]} 20. Ra2 {[%emt 0:02:26]} Bc8 {[%emt 0:00:28]} 21. h4 {[%emt 0:07:21]} Ra7 {[%emt 0:08:49]} 22. g3 {[%emt 0:00:48]} Bh3 {[%emt 0:03:31]} 23. N3h2 {[%emt 0:00:58]} Qc8 {[%emt 0:04:54]} 24. Ne3 {[%emt 0:01:12] h5 is the strong threat.} Bd7 {[%emt 0:01:14]} 25. Kh1 {[%emt 0:05:43]} Kh8 {[%emt 0:01:23]} 26. Rg1 {[%emt 0:05:34]} Qd8 {[%emt 0:01:21]} 27. Re2 {[%emt 0:00:56]} Bc8 {[%emt 0:00:38]} 28. Ree1 {[%emt 0:00:25]} Ne7 {[%emt 0:01:42]} 29. Qf3 {[%emt 0:04:08]} Neg8 {[%emt 0:00:58]} 30. Bd3 {[%emt 0:13:43]} g6 {[%emt 0:01:06]} 31. g4 {[%emt 0:01:03]} Nh7 {[%emt 0:01:37]} 32. Qg3 {[%emt 0:00:34]} Bg7 {[%emt 0:01:26]} 33. Rg2 {[%emt 0:01:27]} Rf8 {[%emt 0:02:20]} 34. Reg1 {[%emt 0:01:21]} Re7 {[%emt 0:00:50]} 35. Nf3 {[%emt 0:02:46]} Ree8 {[%emt 0:00:29]} ({Better is} 35... h5) 36. Nf5 {[%emt 0:06:49]} f6 $2 {[%emt 0:09:04] [#]} (36... Ngf6 $16 {was necessary.}) 37. g5 $1 $18 {[%emt 0:04:00]} h5 {[%emt 0:03:03]} 38. Nxg7 {[%emt 0:02:30]} Kxg7 {[%emt 0:00:06]} 39. gxf6+ {[%emt 0:00:03]} Rxf6 {[%emt 0:02:00]} 40. Ng5 {[%emt 0:00:06] Black must now prevent Be2.} Bg4 {[%emt 0:01:33] [#]} 41. f4 {[%emt 0:03:28]} (41. f3 $1 $18 {[%cal Rf3g4]} Nxg5 42. fxg4 (42. Bxg5 Bxf3 43. Bxf6+ Qxf6 $15)) 41... Nxg5 $11 {[%emt 0:00:52] The position is equal.} 42. hxg5 {[%emt 0:00:09]} ({Don't go for} 42. fxg5 $2 Rf3 43. Re1 Rxg3 $19) 42... Rxf4 {[%emt 0:00:04]} 43. Bxf4 {[%emt 0:01:19]} exf4 {[%emt 0:00:04]} 44. Qxf4 {[%emt 0:03:02] Weighted Error Value: White=0.22 (precise) /Black=0.16 (very precise)} 1/2-1/2

[Event "5th Sharjah Masters 2022"]
[Site "Sharjah"]
[Date "2022.05.26"]
[Round "6.21"]
[White "Jumabayev, Rinat"]
[Black "Vokhidov, Shamsiddin"]
[Result "1-0"]
[ECO "A17"]
[WhiteElo "2628"]
[BlackElo "2536"]
[Annotator "TA"]
[PlyCount "85"]
[EventDate "2022.05.21"]
[EventType "swiss"]
[EventCountry "UAE"]
[SourceTitle "playchess.com"]
[Source "ChessBase"]
[SourceQuality "1"]
[TimeControl "5400+30"]

{[%evp 9,85,4,0,0,17,0,0,0,0,0,0,-7,0,-3,-5,0,0,0,14,0,15,18,18,20,41,25,47,43,56,50,60,12,6,7,14,0,78,79,106,104,104,108,158,156,162,162,162,162,175,175,175,158,175,175,175,168,166,152,160,161,152,150,158,143,181,152,177,168,220,222,222,204,242,238,231,214,208,191]} 1. Nf3 {[%emt 0:00:01]} Nf6 {[%emt 0:02:03]} 2. c4 {[%emt 0:00:21]} e6 {[%emt 0:00:52]} 3. Nc3 {[%emt 0:01:51]} d5 {[%emt 0:00:16]} 4. e3 {[%emt 0:00:10]} b6 {[%emt 0:02:11]} 5. b3 {[%emt 0:08:20]} Bb7 {[%emt 0:00:19]} 6. Bb2 {[%emt 0:00:04] A17: English Opening: 1...Nf6 with ...Bb4.} Nbd7 {[%emt 0:00:18]} 7. Qc2 {[%emt 0:01:12]} a6 {[%emt 0:07:27]} 8. Be2 {[%emt 0:07:22] The position is equal.} Bd6 {[%emt 0:02:05]} 9. O-O {[%emt 0:10:37]} O-O {[%emt 0:01:49]} 10. Rad1 $5 {[%emt 0:09:22][%mdl 4] A promising side line.} c5 {[%emt 0:10:19]} 11. cxd5 {[%emt 0:04:34]} exd5 {[%emt 0:00:04]} 12. d4 {[%emt 0:00:05] [#]} Rc8 $146 {[%emt 0:00:22]} ({Predecessor:} 12... Qe7 13. Bd3 Ne4 14. dxc5 Ndxc5 15. Ne2 Rac8 16. Qb1 f5 17. Bc2 Ne6 18. Ned4 f4 {1-0 (38) Balashov,Y (2555)-Goloshchapov,A (2400) Moscow 1998}) 13. dxc5 {[%emt 0:03:59]} bxc5 {[%emt 0:00:26]} 14. Qf5 {[%emt 0:00:42]} Qe7 {[%emt 0:04:49]} 15. Nxd5 {[%emt 0:05:15]} (15. Rfe1 {with more complications.} Rfd8 16. Qh3 Re8 17. Nh4) 15... Nxd5 {[%emt 0:02:36]} 16. Rxd5 {[%emt 0:00:27]} Bxd5 {[%emt 0:06:51]} 17. Qxd5 {[%emt 0:01:52] [#] Black must now prevent Rd1.} Rfd8 {[%emt 0:00:56][%cal Oc5c4]} 18. Qf5 $40 {[%emt 0:08:44][%mdl 128] White mounts an attack.} ({Inferior is} 18. Bxa6 {[#]} Nb8 $1 19. Qa8 Nxa6 20. Qxa6 Ra8 $17) 18... g6 {[%emt 0:09:35]} 19. Qc2 {[%emt 0:01:24]} Ne5 {[%emt 0:01:57]} 20. Bxe5 {[%emt 0:01:06]} ({Don't play} 20. Bxa6 Nxf3+ 21. gxf3 Bxh2+ 22. Kxh2 Qd6+ 23. Kg2 Qxa6 $15) (20. Nd2 $14 {feels stronger.}) 20... Bxe5 $11 {[%emt 0:00:13]} 21. Bxa6 {[%emt 0:00:05]} Ra8 {[%emt 0:02:12]} 22. Bc4 {[%emt 0:01:40]} Kg7 {[%emt 0:00:36]} (22... Ra3 $1 $11 {remains equal.}) 23. a4 $16 {[%emt 0:00:07] Black is now going downhill.} Bc7 {[%emt 0:01:36]} 24. g3 {[%emt 0:02:37]} Ba5 {[%emt 0:02:19]} 25. h4 {[%emt 0:08:22]} f5 {[%emt 0:02:39]} (25... Qf6 $142 26. Kg2 Ra7) 26. Ng5 {[%emt 0:07:50] aiming for Qb2+. White is clearly better.} Rd6 {[%emt 0:00:27]} 27. Qb2+ {[%emt 0:01:29]} Qf6 {[%emt 0:00:29]} 28. Qxf6+ {[%emt 0:00:13]} Kxf6 {[%emt 0:00:53]} 29. Nxh7+ {[%emt 0:00:08]} Ke7 {[%emt 0:00:03]} 30. Ng5 {[%emt 0:00:19][%cal Bh7g5,Bg5f7,Bf7e5,Be5f3][%mdl 32]} Bc3 {[%emt 0:01:40]} 31. Rc1 {[%emt 0:01:16]} Bb4 {[%emt 0:01:22]} 32. Nf7 {[%emt 0:04:55]} Rd2 {[%emt 0:00:58]} 33. Ne5 {[%emt 0:00:07]} Kf6 {[%emt 0:00:04]} 34. Nf3 {[%emt 0:00:15]} Rd6 {[%emt 0:01:03]} 35. Kg2 {[%emt 0:01:04]} Rad8 {[%emt 0:00:28]} 36. Be2 {[%emt 0:00:07]} Ra8 {[%emt 0:01:48]} 37. Rc4 {[%emt 0:01:33]} Rad8 {[%emt 0:00:40]} 38. g4 {[%emt 0:02:34]} fxg4 {[%emt 0:04:37]} (38... Kg7 {was worth a try.} 39. gxf5 gxf5) 39. Rxg4 $18 {[%emt 0:00:28]} Re8 {[%emt 0:00:13]} 40. Bc4 {[%emt 0:00:20]} Re7 {[%emt 0:00:26]} 41. Ng5 {[%emt 0:00:49]} Kg7 {[%emt 0:01:14]} 42. Ne4 {[%emt 0:00:52]} Rb6 {[%emt 0:00:45]} 43. Kf3 {[%emt 0:00:59] Weighted Error Value: White=0.04 (flawless) /Black=0.14 (very precise)} 1-0

[Event "5th Sharjah Masters 2022"]
[Site "Sharjah"]
[Date "2022.05.26"]
[Round "6.23"]
[White "Moroni, Luca Jr"]
[Black "Ganguly, Surya Shekhar"]
[Result "1/2-1/2"]
[ECO "D41"]
[WhiteElo "2581"]
[BlackElo "2616"]
[Annotator "TA"]
[PlyCount "138"]
[EventDate "2022.05.21"]
[EventType "swiss"]
[EventCountry "UAE"]
[SourceTitle "playchess.com"]
[Source "ChessBase"]
[SourceQuality "1"]
[TimeControl "5400+30"]

{[%evp 20,138,18,7,0,3,11,-6,9,0,0,0,0,0,16,-16,-31,-37,-40,-70,-88,-74,-83,-78,-65,-68,-84,-81,-39,-26,0,0,0,-56,-45,-55,-60,-159,-149,-146,-135,-149,-133,-276,-169,-175,-172,-129,-129,-142,-107,-107,-97,-77,-75,-107,-107,-107,-83,-173,-173,-173,-173,-173,-173,-173,-173,-166,-16,-16,-16,-16,-16,-16,0,0,0,0,0,0,0,0,0,0,0,0,0,0,0,0,0,0,0,0,0,-13,0,0,0,0,0,0,0,0,0,0,0,0,0,0,0,0,0,0,0,0,0,0,0,0,0]} 1. c4 {[%emt 0:00:03]} c5 {[%emt 0:00:44]} 2. Nf3 {[%emt 0:00:15]} Nf6 {[%emt 0:00:19]} 3. Nc3 {[%emt 0:00:08]} d5 {[%emt 0:00:29]} 4. cxd5 {[%emt 0:00:13]} Nxd5 {[%emt 0:00:08]} 5. d4 {[%emt 0:00:04]} e6 {[%emt 0:01:00]} 6. e4 {[%emt 0:00:21]} Nxc3 {[%emt 0:00:06]} 7. bxc3 {[%emt 0:00:04]} cxd4 {[%emt 0:00:07]} 8. cxd4 {[%emt 0:00:05]} Bb4+ {[%emt 0:00:08]} 9. Bd2 {[%emt 0:00:03]} Bxd2+ {[%emt 0:00:07]} 10. Qxd2 {[%emt 0:00:03]} O-O {[%emt 0:00:09]} 11. Rc1 {[%emt 0:00:03]} b6 {[%emt 0:01:41] D41: Queen's Gambit Declined: Semi-Tarrasch with 5 cxd5.} 12. Bd3 {[%emt 0:00:06]} Bb7 {[%emt 0:00:20]} 13. Qe3 {[%emt 0:00:04]} Nd7 {[%emt 0:00:35][%cal Bb8d7,Bd7b6,Bb6d5][%mdl 32]} 14. e5 {[%emt 0:00:04]} Bxf3 {[%emt 0:06:54]} 15. Qxf3 {[%emt 0:00:06]} b5 {[%emt 0:00:09]} 16. O-O {[%emt 0:00:28]} b4 {[%emt 0:02:20] [#]} 17. Rc6 $146 {[%emt 0:00:56]} ({Predecessor:} 17. Be4 Rc8 18. Qd3 g6 19. Qb5 Rb8 20. Qa4 a5 21. Rfd1 Nb6 22. Qxa5 Nd5 23. Qxd8 Rfxd8 24. Bxd5 Rxd5 {½-½ (32) Martinovic,S (2563)-Pikula,D (2477) Germany 2019}) 17... Nb6 {[%emt 0:02:16]} 18. Qe4 {[%emt 0:06:14][%csl Gd3][%cal Re4h7]} g6 {[%emt 0:00:45]} 19. Rd6 {[%emt 0:00:20]} Qe7 {[%emt 0:02:10]} 20. Rc1 {[%emt 0:36:49]} Nd5 {[%emt 0:01:44]} 21. Rcc6 {[%emt 0:07:05]} Rac8 {[%emt 0:04:38]} 22. h4 {[%emt 0:06:17]} Rxc6 {[%emt 0:03:14]} 23. Rxc6 {[%emt 0:00:41]} Rd8 {[%emt 0:00:10][%cal Bf8d8,Bd8d5,Bd5a5][%mdl 32]} 24. Bc4 {[%emt 0:05:05]} Kg7 {[%emt 0:01:59]} (24... Nc3 $5 {[%cal Rc3e4]} 25. Qg4 h5 $15) 25. Bxd5 {[%emt 0:08:04]} Rxd5 $11 {[%emt 0:00:13][%mdl 4096] Endgame KQR-KQR} 26. h5 {[%emt 0:01:03]} (26. Qf4 $11) 26... gxh5 $15 {[%emt 0:04:56]} 27. Rc1 {[%emt 0:06:41]} Qg5 {[%emt 0:05:29]} 28. f4 {[%emt 0:06:28]} ({Better is} 28. Rc4 $1 $15) 28... Qg6 {[%emt 0:02:38]} 29. Qe3 {[%emt 0:01:00]} Ra5 {[%emt 0:00:22]} 30. Qf2 {[%emt 0:01:20]} h4 {[%emt 0:01:22]} 31. Rc7 {[%emt 0:02:35]} (31. Rc2 $17) 31... Qg3 {[%emt 0:08:38]} 32. Rb7 {[%emt 0:08:03]} Qxf2+ {[%emt 0:09:37]} 33. Kxf2 {[%emt 0:00:01]} Rxa2+ $19 {[%emt 0:00:29] KR-KR} 34. Kf3 {[%emt 0:00:01]} Ra3+ {[%emt 0:00:32]} ({Weaker is} 34... a5 35. f5 exf5 36. e6 Ra3+ 37. Ke2 Ra2+ 38. Kd3 $11) 35. Kg4 {[%emt 0:01:15]} Rg3+ {[%emt 0:06:25]} 36. Kxh4 {[%emt 0:00:08]} Rxg2 {[%emt 0:00:04]} 37. Rxb4 {[%emt 0:00:27][%cal Od4d5]} Kg6 $1 {[%emt 0:03:14] And now ...h5 would win.} 38. Ra4 {[%emt 0:01:54]} Rd2 {[%emt 0:04:22] Strongly threatening ...Rd3.} 39. Kg3 {[%emt 0:01:22] [#]} (39. Kg4 $17) 39... a5 $1 {[%emt 0:12:32]} 40. Kf3 {[%emt 0:00:13]} Kf5 {[%emt 0:00:21]} 41. Ke3 {[%emt 0:00:46] [#]} Rh2 {[%emt 0:00:04]} 42. Rxa5 {[%emt 0:01:26]} Rh3+ {[%emt 0:00:13]} 43. Kf2 {[%emt 0:01:36]} Ke4 {[%emt 0:08:16]} ({Black should play} 43... Kxf4 $19 {aiming for ...Ke4.} 44. d5 Rh2+ 45. Kg1 Rh5) 44. Kg2 $1 $11 {[%emt 0:01:47] The position is equal.} Rh4 {[%emt 0:01:09]} 45. Ra4 $1 {[%emt 0:00:37]} Rg4+ {[%emt 0:01:00]} (45... Kxf4 $2 46. d5+ Kxe5 47. Rxh4 $18) 46. Kh3 {[%emt 0:00:01]} h5 {[%emt 0:00:04]} (46... Rxf4 47. d5+ Kxe5 48. Rxf4 exd5 49. Rxf7 h5 50. Kg3 Ke4 51. Kf2) 47. d5+ $1 {[%emt 0:00:47]} Kxd5 {[%emt 0:00:05]} 48. Rb4 {[%emt 0:00:19]} Kc5 {[%emt 0:03:13]} 49. Ra4 {[%emt 0:00:09]} Kb5 {[%emt 0:00:05]} 50. Re4 {[%emt 0:00:06]} Kb6 {[%emt 0:00:40]} 51. Rc4 {[%emt 0:00:22]} Kb7 {[%emt 0:00:02]} 52. Kh2 {[%emt 0:00:56]} Ka6 {[%emt 0:01:03]} 53. Kh3 {[%emt 0:00:16]} Ka5 {[%emt 0:00:08]} 54. Rd4 {[%emt 0:00:12]} Kb5 {[%emt 0:00:02]} 55. Re4 {[%emt 0:00:03]} Kc5 {[%emt 0:01:32]} 56. Ra4 {[%emt 0:00:04]} Kd5 {[%emt 0:00:54]} 57. Rb4 {[%emt 0:00:01]} Rg1 {[%emt 0:00:17]} 58. Kh4 {[%emt 0:00:12]} Rh1+ {[%emt 0:01:02]} 59. Kg5 {[%emt 0:00:04]} h4 {[%emt 0:00:22]} 60. Kg4 {[%emt 0:00:46]} h3 {[%emt 0:00:15]} 61. Kg3 {[%emt 0:00:12]} h2 {[%emt 0:03:30]} 62. Kg2 {[%emt 0:00:06]} Re1 {[%emt 0:00:02]} 63. Kxh2 {[%emt 0:00:04]} Re4 {[%emt 0:00:02]} 64. Rxe4 {[%emt 0:00:06]} Kxe4 {[%emt 0:00:01] KPP-KPP} 65. Kg3 {[%emt 0:00:04]} Kf5 {[%emt 0:00:02]} (65... Ke3 $5) 66. Kf3 {[%emt 0:00:04]} f6 {[%emt 0:00:02]} 67. exf6 {[%emt 0:00:03]} Kxf6 {[%emt 0:00:02]} 68. Ke3 {[%emt 0:00:03]} e5 {[%emt 0:00:03]} (68... Kf5 $5) 69. fxe5+ {[%emt 0:00:03]} Kxe5 {[%emt 0:07:24] And White is the lucky defender.  Weighted Error Value: White=0.12 (very precise) /Black=0.13 (very precise)} 1/2-1/2

[Event "5th Sharjah Masters 2022"]
[Site "Sharjah"]
[Date "2022.05.26"]
[Round "6.24"]
[White "Gharibyan, Mamikon"]
[Black "Mchedlishvili, Mikheil"]
[Result "0-1"]
[ECO "E28"]
[WhiteElo "2487"]
[BlackElo "2595"]
[Annotator "TA"]
[PlyCount "158"]
[EventDate "2022.05.21"]
[EventType "swiss"]
[EventCountry "UAE"]
[SourceTitle "playchess.com"]
[Source "ChessBase"]
[SourceQuality "1"]
[TimeControl "5400+30"]

{[%evp 10,158,-12,-9,-9,-32,-52,-46,-20,-50,-18,-35,-14,-20,-34,-52,-20,-25,-13,-26,-20,-25,-2,-7,0,0,0,0,0,0,0,0,0,-10,0,0,0,-11,0,0,0,0,0,0,0,0,0,-23,-17,-21,-17,-21,-16,-29,0,0,0,-7,-9,-13,-14,-21,-28,-21,-21,-36,-23,-40,-22,-18,-18,-18,-18,-18,-18,-18,-18,-18,-18,-18,-18,-35,-22,-26,-12,-77,0,0,0,0,0,-408,-367,-613,-248,-1049,-968,-963,-793,-11683,0,-11668,-11668,-11387,-9308,-11668,-11668,-11647,-10292,-11388,-5402,-2139,-768,-1384,-1345,-7313,-1838,-29967,-29954,-29966,-29966,-29966,-29966,-29967,-29968,-29967,-29969,-29966,-29970,-29969,-29971,-29971,-29971,-29972,-29973,-29972,-29973,-29973,-29974,-29974,-29975,-29976,-29976,-29977,-29977,-29977,-29978,-29979,-29979,-29980,-29980]} 1. d4 {[%emt 0:00:03]} Nf6 {[%emt 0:00:15]} 2. c4 {[%emt 0:00:08]} e6 {[%emt 0:00:27]} 3. Nc3 {[%emt 0:00:16]} Bb4 {[%emt 0:00:55]} 4. e3 {[%emt 0:00:17]} O-O {[%emt 0:00:49]} 5. a3 {[%emt 0:00:29]} Bxc3+ {[%emt 0:00:47]} 6. bxc3 {[%emt 0:00:05]} Nc6 {[%emt 0:01:41][%cal Bb8c6,Bc6a5,Ba5b3,Bb3c1][%mdl 32] E28: Nimzo-Indian: Sämisch: 5...0-0 6 e3.} 7. Ne2 {[%emt 0:13:37]} b6 {[%emt 0:08:17]} 8. Ng3 {[%emt 0:02:41]} Ba6 {[%emt 0:01:41] Black is slightly better.} 9. e4 {[%emt 0:07:10]} Ne8 {[%emt 0:07:21]} (9... d6 $5 {[%cal Rc6a5]}) 10. Bd3 {[%emt 0:08:17]} Na5 {[%emt 0:01:18]} ({Don't take} 10... Nd6 11. e5 Ne8 12. O-O $16 (12. Qh5 f5 $14)) 11. Qe2 $1 {[%emt 0:02:20]} c5 {[%emt 0:09:44]} 12. d5 {[%emt 0:17:17] [#]} f5 $5 $146 {[%emt 0:12:07][%mdl 8] New and interesting.} ({Predecessor:} 12... f6 13. e5 fxe5 14. dxe6 dxe6 15. O-O Nf6 16. Bg5 Qc7 17. f4 Nc6 18. Rae1 Rad8 19. Ne4 exf4 20. Rxf4 Nd7 21. Rh4 Nde5 22. Rxh7 Nf3+ 23. gxf3 Kxh7 24. Bxd8 {1-0 (24) Lalith,B (2569)-Debashis,D (2507) Jalgaon 2013}) 13. exf5 {[%emt 0:05:51]} exd5 {[%emt 0:02:23]} 14. cxd5 {[%emt 0:07:09]} Bxd3 {[%emt 0:00:56]} 15. Qxd3 {[%emt 0:00:05]} Nb3 {[%emt 0:15:23] Pair of Knights!} 16. Rb1 {[%emt 0:00:40]} Nxc1 {[%emt 0:00:56]} 17. Rxc1 {[%emt 0:00:03]} Qe7+ {[%emt 0:00:29]} 18. Qe3 {[%emt 0:03:53]} Qf7 {[%emt 0:03:33]} 19. c4 {[%emt 0:10:59]} Nd6 {[%emt 0:00:45]} 20. O-O {[%emt 0:00:08]} Rae8 {[%emt 0:00:49]} 21. Qd2 {[%emt 0:05:57]} Nxf5 {[%emt 0:01:35]} 22. Nxf5 {[%emt 0:00:57]} Qxf5 {[%emt 0:00:07]} 23. Rfe1 {[%emt 0:01:41]} Qf4 {[%emt 0:03:54]} 24. Qc2 {[%emt 0:00:27]} h6 {[%emt 0:05:13]} 25. h3 {[%emt 0:00:40]} d6 {[%emt 0:07:42]} 26. a4 {[%emt 0:00:46]} Re5 {[%emt 0:01:33]} 27. Rxe5 {[%emt 0:02:45]} Qxe5 $11 {[%emt 0:00:06][%mdl 4096] Endgame KQR-KQR} 28. Qg6 {[%emt 0:02:36]} Rf4 {[%emt 0:06:29]} 29. g3 {[%emt 0:03:35]} Re4 {[%emt 0:00:54]} 30. Kg2 {[%emt 0:03:10]} Re2 {[%emt 0:00:55]} 31. h4 {[%emt 0:01:26]} Qe4+ {[%emt 0:01:07]} 32. Qxe4 {[%emt 0:00:04]} Rxe4 {[%emt 0:00:04] KR-KR} 33. Kf3 {[%emt 0:00:38]} Rd4 {[%emt 0:00:07]} 34. Ke2 {[%emt 0:00:47]} Kf7 {[%emt 0:01:20]} 35. Rc3 {[%emt 0:00:26]} Kg6 {[%emt 0:01:20]} 36. f3 {[%emt 0:00:30]} h5 {[%emt 0:01:18]} 37. Ke1 {[%emt 0:00:27]} Kf6 {[%emt 0:00:20]} 38. Ke2 $1 {[%emt 0:00:26]} Kf7 {[%emt 0:00:16]} 39. Ke1 {[%emt 0:00:14]} g6 {[%emt 0:02:01]} 40. Ke2 $1 {[%emt 0:00:12]} Kf6 {[%emt 0:00:11]} 41. Ke1 {[%emt 0:00:26]} g5 {[%emt 0:01:10]} 42. hxg5+ {[%emt 0:00:04]} Kxg5 {[%emt 0:00:04] With the idea ...h4.} 43. Ke2 {[%emt 0:00:22]} h4 {[%emt 0:00:32]} 44. gxh4+ {[%emt 0:00:19]} Rxh4 {[%emt 0:00:15]} 45. Ke3 {[%emt 0:01:24]} Kf5 {[%emt 0:00:06]} 46. Rc1 $1 {[%emt 0:00:55] Against Rh1} Rh2 {[%emt 0:01:23]} 47. a5 {[%emt 0:00:37] [#]} (47. Ra1 $1 $11 {was the only way to keep the balance.}) 47... Rb2 {[%emt 0:01:41]} (47... b5 $1 $17 {[%cal Rb5b4] aiming for ...b4.} 48. cxb5 Rb2) 48. axb6 {[%emt 0:00:10]} axb6 {[%emt 0:00:01]} 49. Kd3 {[%emt 0:00:53]} b5 {[%emt 0:01:12]} 50. cxb5 $2 {[%emt 0:00:34][%mdl 8192] Black keeps a firm grip on the game.} (50. Kc3 $11 {and White has nothing to worry.} Rf2 51. cxb5) 50... Rxb5 $19 {[%emt 0:00:05] Strongly threatening ...Ke5.} 51. Kc3 $2 {[%emt 0:00:33]} (51. Rh1 Rb4 52. Rh5+ Kg6 53. Rh8) 51... Ke5 {[%emt 0:00:38]} (51... Rb4 $142 52. Rh1 Rd4) 52. Rd1 {[%emt 0:00:29]} (52. f4+ Kxd5 53. Rf1) 52... Rb4 {[%emt 0:00:09]} 53. Rd2 {[%emt 0:00:30]} Ra4 {[%emt 0:00:10] Threatens to win with ...Kf4.} 54. Rd1 {[%emt 0:00:28]} Kf4 {[%emt 0:01:21]} 55. Rh1 $2 {[%emt 0:00:32][%mdl 8192] [#]} (55. Re1 $11) 55... Rd4 $1 {[%emt 0:00:29]} 56. Rh4+ {[%emt 0:00:29]} Ke3 {[%emt 0:00:05]} 57. Rh6 {[%emt 0:00:26]} Rxd5 {[%emt 0:00:06]} 58. Rf6 {[%emt 0:00:34]} Rd4 {[%emt 0:00:26]} 59. f4 {[%emt 0:00:31]} Ke4 {[%emt 0:00:13]} 60. Rf8 {[%emt 0:00:30]} Kd5 {[%emt 0:00:29]} (60... Ra4 $142 61. f5 Ke5) 61. Rf6 {[%emt 0:00:30]} Ra4 {[%emt 0:00:41] Hoping for ...Ra3+.} 62. Kb3 {[%emt 0:00:30] Inhibits Ra3+.} Ra1 {[%emt 0:01:10]} (62... Ra8 $142 63. Kb2 c4) 63. Rf5+ {[%emt 0:00:30]} Ke4 {[%emt 0:00:14] Black mates.} 64. Rf8 {[%emt 0:00:26]} d5 {[%emt 0:00:21]} 65. f5 {[%emt 0:00:30]} Rf1 {[%emt 0:00:18]} 66. f6 {[%emt 0:01:06]} Kd4 {[%emt 0:00:30]} 67. Kc2 {[%emt 0:00:00]} c4 {[%emt 0:00:14]} 68. f7 {[%emt 0:00:20]} Rf2+ {[%emt 0:00:41]} 69. Kd1 {[%emt 0:00:13]} Kd3 {[%emt 0:01:54][%cal Rf2f1]} 70. Ke1 {[%emt 0:00:11]} Rf5 {[%emt 0:00:11]} 71. Rd8 {[%emt 0:00:16]} Rxf7 {[%emt 0:00:07]} 72. Rxd5+ {[%emt 0:00:05]} Kc2 {[%emt 0:00:06]} 73. Rd2+ {[%emt 0:01:47]} Kb3 {[%emt 0:00:11]} 74. Rd8 {[%emt 0:00:36]} c3 {[%emt 0:00:17][%cal Bc4c3,Bc3c2][%mdl 32]} 75. Ke2 {[%emt 0:00:30]} Kc2 {[%emt 0:00:07]} 76. Re8 {[%emt 0:00:30]} Rd7 {[%emt 0:00:07]} 77. Ke1 {[%emt 0:00:31]} Kc1 {[%emt 0:00:08]} 78. Ke2 {[%emt 0:00:28]} c2 {[%emt 0:00:07]} 79. Ke1 {[%emt 0:00:31]} Rb7 {[%emt 0:00:14] Weighted Error Value: White=0.72/Black=0.18 (very precise)} 0-1